[Event "Karel Janecek Open 2024"]
[Site "Prague"]
[Date "2024.03.04"]
[Round "6.8"]
[White "Kilic, Eray"]
[Black "Bharath Subramaniyam H"]
[Result "0-1"]
[ECO "B12"]
[WhiteElo "2439"]
[BlackElo "2515"]
[Annotator "TA"]
[PlyCount "84"]
[EventDate "2024.02.22"]
[EventType "swiss"]
[EventCountry "CZE"]
[SourceTitle "playchess.com"]
[Source "ChessBase"]
[SourceQuality "1"]
[TimeControl "40/5400+30:1800+30"]

{[%evp 9,84,12,16,16,20,20,23,32,24,31,27,27,29,29,31,21,40,18,29,35,27,0,0,0,27,17,31,14,15,22,16,20,25,-21,-27,-63,-62,-58,-47,-181,-197,-246,-241,-231,-236,-295,-100,-324,-308,-319,-314,-306,-273,-274,-243,-303,-291,-385,-333,-372,-328,-879,-889,-791,-106,-590,-571,-572,-598,-656,-648,-1170,-758,-781,-779,-773,-764]} 1. e4 {[%emt 0:00:03]} c6 {[%emt 0:00:33]} 2. d4 {[%emt 0:00:05]} d5 {[%emt 0:00:09]} 3. e5 {[%emt 0:00:04]} Bf5 {[%emt 0:00:11]} 4. h4 {[%emt 0:00:04]} a6 {[%emt 0:00:36]} 5. h5 {[%emt 0:00:43]} c5 {[%emt 0:00:51]} 6. dxc5 {[%emt 0:00:04]} Nc6 {[%emt 0:00:13]} 7. Bd3 {[%emt 0:00:54]} Bxd3 {[%emt 0:00:41]} 8. cxd3 {[%emt 0:00:13][%cal Bc2d3,Bd3d4][%mdl 32] White has an edge.} Nxe5 {[%emt 0:00:09]} 9. d4 {[%emt 0:00:27]} Nc6 {[%emt 0:00:10]} 10. Nf3 {[%emt 0:01:41]} e6 {[%emt 0:00:26]} 11. Nc3 {[%emt 0:00:16]} h6 {[%emt 0:00:39]} 12. Qb3 {[%emt 0:01:13]} Ra7 {[%emt 0:00:57]} 13. Bf4 {[%emt 0:07:35]} Nf6 {[%emt 0:00:17]} 14. O-O-O {[%emt 0:01:43]} Be7 {[%emt 0:00:32]} 15. Rde1 {[%emt 0:02:12]} O-O {[%emt 0:07:54]} 16. Kb1 {[%emt 0:03:32][%cal Og2g4]} Nh7 {[%emt 0:20:01]} 17. Na4 {[%emt 0:06:12]} Ng5 {[%emt 0:07:45]} 18. Nxg5 {[%emt 0:00:54]} Bxg5 {[%emt 0:01:53]} 19. Be3 {[%emt 0:00:09]} Bxe3 {[%emt 0:08:54]} 20. fxe3 {[%emt 0:00:17]} Qg5 {[%emt 0:03:39]} 21. Qc2 {[%emt 0:00:44]} (21. Nb6 {should be considered.}) 21... Raa8 $11 {[%emt 0:02:03]} 22. Rh3 {[%emt 0:05:23]} f5 {[%emt 0:08:27]} 23. Nc3 {[%emt 0:11:01]} f4 {[%emt 0:04:38]} 24. Qd3 {[%emt 0:14:39] White is on the road to losing.} (24. Qg6 $15 Qxg6+ 25. hxg6) 24... Qxg2 $19 {[%emt 0:11:57]} 25. exf4 {[%emt 0:00:23]} (25. Rhh1 {is a better defense.}) 25... Nb4 $1 {[%emt 0:01:11]} (25... Rxf4 26. Rg3 Qf2 (26... Rxd4 $2 27. Qg6 $18) 27. Rxg7+ Kxg7 28. Qg6+ Kf8 29. Qxh6+ Ke8 30. Rxe6+ (30. Qxe6+ Kf8 $11) 30... Kf7 (30... Kd7 31. Rd6+ Ke8 32. Re6+ Kf7 33. Qg6+ Kf8 34. Qh6+ Kf7 35. Qg6+ Kf8 36. Qh6+ Kf7 $11) 31. Qg6+ Kf8 32. Qh6+ Kf7 33. Qg6+ Kf8 34. Re8+ Rxe8 35. Qh6+ Kf7 36. Qg6+ Ke7 37. Qd6+ Kf7 38. Qg6+ Kf8 39. Qh6+ Kg8 40. Qg6+ Kf8 $11) 26. Qe3 {[%emt 0:02:49][%cal Oa2a3] [#]} e5 $1 {[%emt 0:06:18][%mdl 512]} 27. Rg1 {[%emt 0:13:35]} (27. fxe5 $2 Rf1 $19 (27... Nc2 $2 28. Qg3 $19) (27... Nc2 $2 28. Qg3 $19)) (27. dxe5 $2 Nc2 28. Qe2 Nxe1 $19 (28... Qxh3 $2 29. Qxc2 Rad8 30. e6 $19)) (27. Re2 Qg4) 27... Qc2+ {[%emt 0:00:48]} 28. Ka1 {[%emt 0:00:04] [#] Black must now prevent a3.} Qf5 $1 {[%emt 0:01:28] ( -> ...Nc2+)} (28... exf4 29. Rxg7+ Kh8 (29... Kxg7 30. Rg3+ fxg3 31. Qxg3+ Kh8 32. Qe5+ Kh7 33. Qc7+ Kh8 34. Qe5+ Kg8 35. Qg3+ Kh8 36. Qe5+ $11) 30. Qg1 $15) (28... Rxf4 $2 29. Qxe5 (29. dxe5 $2 Qf5 $19) 29... Qh7 30. a3 (30. Qxf4 Nc2+ 31. Kb1 Na3+ 32. Ka1 Qb1+ 33. Nxb1 Nc2#) 30... Nc2+ 31. Ka2 $18) 29. Rh2 {[%emt 0:00:03]} (29. fxe5 Nc2+ 30. Kb1 Na3+ (30... Nxe3+ 31. Ka1 Nc2+ 32. Kb1 Na3+ 33. Ka1) 31. Ka1 Qb1+ 32. Nxb1 Nc2#) 29... exf4 {[%emt 0:01:14]} (29... Qxf4 30. Qxe5 Qxe5 31. dxe5 $17) 30. Qd2 {[%emt 0:00:14]} Rae8 {[%emt 0:03:12]} 31. a3 {[%emt 0:01:24]} Nc6 {[%emt 0:00:53]} 32. Rhg2 {[%emt 0:00:16]} Rf7 {[%emt 0:01:42][%cal Of4f3]} (32... Qxh5 $2 33. Rxg7+ Kh8 34. Qg2 $18 (34. Rxb7 f3 $16)) 33. Rg6 {[%emt 0:00:05]} Kh8 {[%emt 0:04:16]} ({Less strong is} 33... Qxh5 34. Qg2 Kh8 (34... Nxd4 35. Rxg7+ Kf8 36. Rg8+ Ke7 37. Re1+ Ne6 38. Nxd5+ Kd7 39. Nb6+ Ke7 40. Rxe6+ Kxe6 41. Qe4+ Qe5 42. Rxe8+) 35. Rxg7 $17 (35. Qxd5 Qxd5 36. Nxd5 f3 $19) (35. Qxd5 $2 Qxd5 36. Nxd5 f3 $19)) 34. Rd6 {[%emt 0:00:05]} f3 {[%emt 0:00:44] Hoping for ...f2.} 35. Nxd5 $2 {[%emt 0:00:25]} (35. Qf2) 35... f2 {[%emt 0:00:54]} 36. Rf1 {[%emt 0:00:01] [#]} Nxd4 $2 {[%emt 0:00:41]} 37. Ka2 $2 {[%emt 0:02:34][%mdl 8192]} (37. Qxd4 $17 Re1+ (37... Qxh5 $2 {loses.} 38. Rxf2 Rxf2 39. Qxf2 $18) 38. Ka2) 37... Nb5 {[%emt 0:00:38] Black is clearly winning.} 38. Ne3 {[%emt 0:01:20]} Qxc5 {[%emt 0:00:25]} 39. Rd3 {[%emt 0:00:42]} Rf3 {[%emt 0:00:47]} 40. b4 {[%emt 0:01:17]} Qg5 {[%emt 0:00:47][%cal Re8e3]} 41. Rxf2 {[%emt 0:30:18]} Rfxe3 {[%emt 0:02:01]} 42. Rxe3 {[%emt 0:00:00]} Qxe3 {[%emt 0:00:16] Weighted Error Value: White=0.69/Black=0.41.  Loses game:     	White=1     	---        Mistake:       	White=4     	---        Inaccurate:     	White=4     	Black=1      OK:         	White=11    	Black=19     Best:        	White=1     	---        Strong:       	---       	Black=2} 0-1

[Event "Karel Janecek Open 2024"]
[Site "Prague"]
[Date "2024.03.04"]
[Round "6.9"]
[White "Kusa, Jakub"]
[Black "Kraus, Tomas"]
[Result "1/2-1/2"]
[ECO "D32"]
[WhiteElo "2350"]
[BlackElo "2484"]
[Annotator "TA"]
[PlyCount "33"]
[EventDate "2024.02.22"]
[EventType "swiss"]
[EventCountry "CZE"]
[SourceTitle "playchess.com"]
[Source "ChessBase"]
[SourceQuality "1"]
[TimeControl "40/5400+30:1800+30"]

{[%evp 23,33,25,33,35,30,13,27,0,20,0,20,0]} 1. Nf3 {[%emt 0:00:07]} d5 {[%emt 0:00:47]} 2. e3 {[%emt 0:00:19]} Nf6 {[%emt 0:02:57]} 3. c4 {[%emt 0:00:15]} e6 {[%emt 0:01:41]} 4. b3 {[%emt 0:00:35]} Bd6 {[%emt 0:04:51]} 5. Bb2 {[%emt 0:00:27]} O-O {[%emt 0:02:16]} 6. Nc3 {[%emt 0:03:04]} c6 {[%emt 0:03:53]} 7. d4 {[%emt 0:01:07]} Nbd7 {[%emt 0:01:03]} 8. Bd3 {[%emt 0:02:07]} e5 {[%emt 0:07:19]} 9. cxd5 {[%emt 0:04:03]} cxd5 {[%emt 0:00:21]} 10. dxe5 {[%emt 0:00:18]} Nxe5 {[%emt 0:00:08]} 11. Be2 {[%emt 0:03:03]} Nc6 {[%emt 0:13:58]} 12. O-O {[%emt 0:01:45]} a6 {[%emt 0:00:12]} 13. Rc1 {[%emt 0:01:14]} (13. Nxd5 $2 {perishes.} Nxd5 14. Qd2 Be7 $19) 13... Re8 {[%emt 0:02:27]} 14. Na4 {[%emt 0:04:42]} Ne4 {[%emt 0:02:18]} 15. Nc3 {[%emt 0:04:27]} Nf6 {[%emt 0:00:56]} 16. Na4 {[%emt 0:05:50]} Ne4 {[%emt 0:00:06]} 17. Nc3 {[%emt 0:00:05] Black got outplayed after the opening.   Weighted Error Value: White=0.17 (very precise) /Black=0.00 (flawless) .  OK:         	---       	Black=3      Best:        	---       	Black=1} 1/2-1/2

[Event "Karel Janecek Open 2024"]
[Site "Prague"]
[Date "2024.03.04"]
[Round "6.10"]
[White "Senthil Maran K"]
[Black "Quintiliano, Renato R."]
[Result "1/2-1/2"]
[ECO "E62"]
[WhiteElo "2275"]
[BlackElo "2493"]
[Annotator "ChessBase"]
[PlyCount "246"]
[EventDate "2024.02.22"]
[EventType "swiss"]
[EventCountry "CZE"]
[SourceTitle "playchess.com"]
[Source "ChessBase"]
[SourceQuality "1"]
[TimeControl "40/5400+30:1800+30"]

1. c4 {[%emt 0:08:35]} Nf6 {[%emt 0:00:13]} 2. Nf3 {[%emt 0:01:23]} g6 {[%emt 0:00:23]} 3. g3 {[%emt 0:01:35]} Bg7 {[%emt 0:00:13]} 4. Bg2 {[%emt 0:00:11]} O-O {[%emt 0:00:15]} 5. O-O {[%emt 0:00:31]} d6 {[%emt 0:00:34]} 6. d4 {[%emt 0:00:37]} c6 {[%emt 0:00:16]} 7. Nc3 {[%emt 0:02:16]} Bf5 {[%emt 0:00:16]} 8. b3 {[%emt 0:07:09]} Ne4 {[%emt 0:00:18]} 9. Nxe4 {[%emt 0:01:00]} Bxe4 {[%emt 0:00:07]} 10. Bb2 {[%emt 0:00:05]} Nd7 {[%emt 0:03:09]} 11. Qd2 {[%emt 0:01:29]} a5 {[%emt 0:05:41]} 12. Qf4 {[%emt 0:08:48]} Bxf3 {[%emt 0:01:34]} 13. Bxf3 {[%emt 0:04:54]} a4 {[%emt 0:01:00]} 14. Qd2 {[%emt 0:02:01]} Qb6 {[%emt 0:08:24]} 15. c5 {[%emt 0:05:03]} Qb5 {[%emt 0:03:00]} 16. cxd6 {[%emt 0:08:20]} exd6 {[%emt 0:02:12]} 17. e3 {[%emt 0:08:01]} axb3 {[%emt 0:00:51]} 18. a4 {[%emt 0:00:15]} Qf5 {[%emt 0:06:19]} 19. Bd1 {[%emt 0:01:20]} h5 {[%emt 0:02:23]} 20. Bxb3 {[%emt 0:00:41]} h4 {[%emt 0:01:33]} 21. Bc2 {[%emt 0:02:03]} Qh3 {[%emt 0:08:46]} 22. Be4 {[%emt 0:00:39]} Qe6 {[%emt 0:05:43]} 23. Bf3 {[%emt 0:02:32]} d5 {[%emt 0:02:36]} 24. Bc3 {[%emt 0:02:56]} Nb6 {[%emt 0:09:36]} 25. a5 {[%emt 0:02:37]} Nc4 {[%emt 0:00:11]} 26. Qd3 {[%emt 0:00:15]} hxg3 {[%emt 0:08:45]} 27. hxg3 {[%emt 0:01:37]} f5 {[%emt 0:00:14]} 28. Rfb1 {[%emt 0:04:35]} Rf7 {[%emt 0:00:09]} 29. Rb3 {[%emt 0:01:37]} Bf6 {[%emt 0:04:30]} 30. Rab1 {[%emt 0:00:46]} Ra7 {[%emt 0:03:24]} 31. Bb4 {[%emt 0:04:54]} Be7 {[%emt 0:01:56]} 32. Be1 {[%emt 0:00:38]} Bd8 {[%emt 0:00:33]} 33. a6 {[%emt 0:03:58]} b5 {[%emt 0:02:36]} 34. Ra1 {[%emt 0:00:40]} Qc8 {[%emt 0:01:17]} 35. Rbb1 {[%emt 0:04:36]} Rxa6 {[%emt 0:00:19]} 36. Rxa6 {[%emt 0:00:18]} Qxa6 {[%emt 0:00:08]} 37. Bc3 {[%emt 0:00:03]} Qc8 {[%emt 0:02:17]} 38. Ra1 {[%emt 0:00:22]} Bb6 {[%emt 0:00:33]} 39. Qb1 {[%emt 0:00:47]} Ra7 {[%emt 0:01:26]} 40. Rxa7 {[%emt 0:01:14]} Bxa7 {[%emt 0:00:06]} 41. Be2 {[%emt 0:32:04]} Nd6 {[%emt 0:36:09]} 42. Qa2 {[%emt 0:01:56]} Bb6 {[%emt 0:00:59]} 43. Qa3 {[%emt 0:00:19]} Ne4 {[%emt 0:00:25]} 44. Be1 {[%emt 0:00:11]} Qe8 {[%emt 0:02:50]} 45. Qa6 {[%emt 0:02:43]} Bc7 {[%emt 0:03:10]} 46. Qb7 {[%emt 0:03:28]} Bd6 {[%emt 0:00:27]} 47. Kg2 {[%emt 0:00:55]} Bf8 {[%emt 0:02:17]} 48. Kg1 {[%emt 0:00:00]} Nd6 {[%emt 0:00:00]} 49. Qc7 {[%emt 0:00:00]} Nf7 {[%emt 0:00:00]} 50. Qb7 {[%emt 0:00:00]} Nd6 {[%emt 0:00:00]} 51. Qc7 {[%emt 0:00:00]} Qc8 {[%emt 0:00:00]} 52. Qxc8 {[%emt 0:00:00]} Nxc8 {[%emt 0:00:00]} 53. g4 {[%emt 0:00:00]} Kf7 {[%emt 0:00:00]} 54. gxf5 {[%emt 0:00:00]} gxf5 {[%emt 0:00:00]} 55. Bh5+ {[%emt 0:00:00]} Ke6 {[%emt 0:00:00]} 56. Be8 {[%emt 0:00:00]} Na7 {[%emt 0:00:00]} 57. Kf1 {[%emt 0:00:00]} Bd6 {[%emt 0:00:00]} 58. Ke2 {[%emt 0:00:00]} f4 {[%emt 0:00:00]} 59. Kd3 {[%emt 0:00:00]} Ke7 {[%emt 0:00:00]} 60. Bh5 {[%emt 0:00:00]} fxe3 {[%emt 0:00:00]} 61. fxe3 {[%emt 0:00:00]} Nc8 {[%emt 0:00:00]} 62. Ba5 {[%emt 0:00:00]} Ba3 {[%emt 0:00:00]} 63. e4 {[%emt 0:00:00]} dxe4+ {[%emt 0:00:00]} 64. Kxe4 {[%emt 0:00:00]} Nd6+ {[%emt 0:00:00]} 65. Kd3 {[%emt 0:00:00]} Nc4 {[%emt 0:00:00]} 66. Be1 {[%emt 0:00:00]} Nb6 {[%emt 0:00:00]} 67. Bf3 {[%emt 0:00:00]} Kd7 {[%emt 0:00:00]} 68. Bg3 {[%emt 0:03:10]} Bd6 {[%emt 0:00:00]} 69. Bg4+ {[%emt 0:00:42]} Kc7 {[%emt 0:00:00]} 70. Be1 {[%emt 0:00:09]} Kb7 {[%emt 0:00:00]} 71. Be6 {[%emt 0:00:23]} Ka6 {[%emt 0:01:13]} 72. Bh4 {[%emt 0:00:57]} Bh2 {[%emt 0:03:29]} 73. Bd8 {[%emt 0:01:01]} Nd5 {[%emt 0:00:07]} 74. Bc8+ {[%emt 0:01:04]} Ka7 {[%emt 0:00:05]} 75. Ba5 {[%emt 0:01:15]} Bd6 {[%emt 0:01:41]} 76. Bd2 {[%emt 0:00:45]} Bf4 {[%emt 0:01:33]} 77. Be1 {[%emt 0:00:16]} Bd6 {[%emt 0:01:38]} 78. Bd7 {[%emt 0:00:48]} Kb6 {[%emt 0:00:13]} 79. Be8 {[%emt 0:00:18]} Be7 {[%emt 0:00:37]} 80. Bd2 {[%emt 0:00:24]} Bf6 {[%emt 0:01:05]} 81. Bf7 {[%emt 0:00:24]} Kc7 {[%emt 0:01:33]} 82. Bg8 {[%emt 0:00:51]} Kd7 {[%emt 0:00:25]} 83. Bf7 {[%emt 0:00:15]} Kd6 {[%emt 0:01:04]} 84. Bg8 {[%emt 0:00:10]} Bd8 {[%emt 0:00:30]} 85. Bf7 {[%emt 0:00:22]} Bb6 {[%emt 0:00:09]} 86. Bg8 {[%emt 0:00:25]} Kd7 {[%emt 0:00:11]} 87. Bf7 {[%emt 0:00:14]} Nc7 {[%emt 0:00:34]} 88. Ke4 {[%emt 0:01:47]} Ne8 {[%emt 0:02:33]} 89. Kd3 {[%emt 0:01:08]} Nd6 {[%emt 0:00:11]} 90. Bg8 {[%emt 0:00:30]} Nf5 {[%emt 0:00:46]} 91. Bc3 {[%emt 0:00:33]} Ne7 {[%emt 0:01:29]} 92. Bf7 {[%emt 0:00:14]} Nd5 {[%emt 0:00:06]} 93. Bd2 {[%emt 0:00:07]} Ke7 {[%emt 0:00:12]} 94. Bg8 {[%emt 0:00:18]} Kd6 {[%emt 0:01:01]} 95. Bf7 {[%emt 0:00:15]} Bd8 {[%emt 0:00:24]} 96. Bg8 {[%emt 0:00:17]} Bh4 {[%emt 0:00:23]} 97. Bf7 {[%emt 0:00:20]} Bf2 {[%emt 0:00:14]} 98. Bg8 {[%emt 0:00:24]} Ke7 {[%emt 0:01:00]} 99. Bh7 {[%emt 0:00:29]} Bg3 {[%emt 0:00:31]} 100. Bg8 {[%emt 0:00:25]} Bd6 {[%emt 0:00:14]} 101. Bh7 {[%emt 0:00:21]} Bb4 {[%emt 0:00:07]} 102. Bc1 {[%emt 0:01:00]} Bc3 {[%emt 0:01:11]} 103. Be4 {[%emt 0:02:11]} Ba1 {[%emt 0:00:31]} 104. Bd2 {[%emt 0:00:59]} Kd6 {[%emt 0:00:17]} 105. Bh7 {[%emt 0:00:47]} Nf6 {[%emt 0:00:25]} 106. Bg6 {[%emt 0:00:19]} Kc7 {[%emt 0:00:26]} 107. Ba5+ {[%emt 0:00:23]} Kd7 {[%emt 0:00:11]} 108. Bf7 {[%emt 0:00:44]} Nd5 {[%emt 0:00:16]} 109. Bd2 {[%emt 0:00:09]} Kd6 {[%emt 0:01:14]} 110. Bg8 {[%emt 0:00:11]} Ke7 {[%emt 0:00:09]} 111. Bh7 {[%emt 0:00:14]} b4 {[%emt 0:01:18]} 112. Kc4 {[%emt 0:01:15]} Bc3 {[%emt 0:00:04]} 113. Bg5+ {[%emt 0:01:01]} Kd6 {[%emt 0:00:17]} 114. Bg8 {[%emt 0:00:58]} Nb6+ {[%emt 0:02:18]} 115. Kb3 {[%emt 0:00:12]} Kd7 {[%emt 0:00:22]} 116. Bh6 {[%emt 0:00:59]} Ke8 {[%emt 0:00:16]} 117. Be6 {[%emt 0:00:37]} Ke7 {[%emt 0:00:07]} 118. Bg8 {[%emt 0:00:14]} Nc8 {[%emt 0:00:06]} 119. Bf4 {[%emt 0:00:38]} Kd7 {[%emt 0:00:18]} 120. d5 {[%emt 0:00:50]} c5 {[%emt 0:00:30]} 121. Be6+ {[%emt 0:00:18]} Kd8 {[%emt 0:00:30]} 122. Bxc8 {[%emt 0:00:18]} Kxc8 {[%emt 0:00:06]} 123. Be3 {[%emt 0:00:05]} Kd7 {[%emt 0:00:34]} 1/2-1/2

[Event "Karel Janecek Open 2024"]
[Site "Prague"]
[Date "2024.03.04"]
[Round "6.11"]
[White "Barbosa, Evandro Amorim"]
[Black "Harikrishnan.A.Ra"]
[Result "1/2-1/2"]
[ECO "C11"]
[WhiteElo "2491"]
[BlackElo "2448"]
[Annotator "TA"]
[PlyCount "76"]
[EventDate "2024.02.22"]
[EventType "swiss"]
[EventCountry "CZE"]
[SourceTitle "playchess.com"]
[Source "ChessBase"]
[SourceQuality "1"]
[TimeControl "40/5400+30:1800+30"]

{[%evp 25,76,0,0,0,0,0,0,-8,5,0,17,0,25,25,48,52,54,55,50,44,50,0,4,0,0,0,0,0,0,0,0,0,0,0,0,-10,0,0,0,-8,-6,-29,-31,-26,-25,-50,-31,-59,-72,-63,0,0,0]} 1. e4 {[%emt 0:04:27]} e6 {[%emt 0:00:12]} 2. d4 {[%emt 0:00:43]} d5 {[%emt 0:00:04]} 3. Nc3 {[%emt 0:00:24]} Nf6 {[%emt 0:00:13]} 4. e5 {[%emt 0:00:14]} Nfd7 {[%emt 0:00:03]} 5. f4 {[%emt 0:00:19]} c5 {[%emt 0:00:04]} 6. Nf3 {[%emt 0:00:08]} Nc6 {[%emt 0:00:02]} 7. Be3 {[%emt 0:00:09]} cxd4 {[%emt 0:00:04]} 8. Nxd4 {[%emt 0:00:17]} Qb6 {[%emt 0:00:03]} 9. a3 {[%emt 0:08:06]} Bc5 {[%emt 0:05:40]} 10. Na4 {[%emt 0:00:49]} Qa5+ {[%emt 0:00:39]} 11. c3 {[%emt 0:00:51]} Bxd4 {[%emt 0:05:52]} 12. Bxd4 {[%emt 0:00:11]} Nxd4 {[%emt 0:05:32]} 13. Qxd4 {[%emt 0:00:09]} b6 {[%emt 0:00:36]} 14. Qb4 {[%emt 0:01:30]} Qxb4 {[%emt 0:02:18]} 15. axb4 {[%emt 0:00:26]} Bb7 {[%emt 0:00:13][%cal Og7g5]} 16. Bb5 {[%emt 0:04:17]} Ke7 {[%emt 0:03:27]} 17. Kd2 {[%emt 0:03:05]} Nb8 {[%emt 0:15:32][%cal Bd7b8,Bb8c6,Bc6a5,Ba5c4][%mdl 32]} 18. Bd3 {[%emt 0:16:28]} Nc6 {[%emt 0:07:59][%cal Og7g5]} 19. b5 {[%emt 0:09:14]} Na5 {[%emt 0:22:13] [#]} 20. Nc5 {[%emt 0:09:59] Dodges Nb3+} Nc4+ {[%emt 0:00:56]} (20... bxc5 21. Rxa5) 21. Bxc4 {[%emt 0:00:11]} bxc5 {[%emt 0:00:04]} 22. Bd3 {[%emt 0:00:10]} Kd8 {[%emt 0:08:10]} 23. f5 {[%emt 0:05:57]} (23. Ra4 $14) 23... exf5 {[%emt 0:01:25]} 24. Rhf1 {[%emt 0:00:00]} g6 {[%emt 0:02:45]} 25. g4 $1 {[%emt 0:00:00]} Re8 {[%emt 0:00:12]} 26. gxf5 {[%emt 0:08:31]} Rxe5 {[%emt 0:00:44]} 27. fxg6 {[%emt 0:00:09]} fxg6 {[%emt 0:00:21]} 28. Rf8+ {[%emt 0:00:56]} (28. Rf7 $5 Re7 $8 29. Rf6 $11) 28... Re8 $1 {[%emt 0:00:07]} 29. Rf7 {[%emt 0:00:16][%csl LRb7,LRh7]} Re7 {[%emt 0:00:04]} 30. Rf8+ {[%emt 0:00:14]} Re8 {[%emt 0:00:19]} 31. Rf7 {[%emt 0:00:07][%csl LRb7,LRh7]} Re7 {[%emt 0:00:04]} 32. Rf8+ {[%emt 0:01:33]} Kc7 {[%emt 0:00:25]} 33. Rf6 {[%emt 0:00:05]} c4 {[%emt 0:07:32]} 34. Bf1 {[%emt 0:03:23]} Rae8 {[%emt 0:02:28]} 35. Rxa7 {[%emt 0:01:35][%cal Ob2b3]} Re6 {[%emt 0:00:18]} 36. Rf2 {[%emt 0:06:41]} Kb6 {[%emt 0:00:09][%csl LRa7,LRb5]} 37. Ra4 {[%emt 0:00:33][%cal Ob2b3]} R8e7 {[%emt 0:04:38]} (37... Kxb5 $15 38. b3 Bc6) 38. b3 $11 {[%emt 0:02:38]} cxb3 {[%emt 0:03:58] Weighted Error Value: White=0.08 (flawless) /Black=0.09 (flawless) .  Mistake:       	White=1     	Black=1      Inaccurate:     	White=1     	---        OK:         	White=12    	Black=11     Best:        	White=1     	Black=2      Strong:       	White=1     	Black=1} 1/2-1/2

[Event "Karel Janecek Open 2024"]
[Site "Prague"]
[Date "2024.03.04"]
[Round "6.12"]
[White "Rohit S"]
[Black "Csonka, Balasz"]
[Result "1/2-1/2"]
[ECO "C64"]
[WhiteElo "2174"]
[BlackElo "2480"]
[Annotator "TA"]
[PlyCount "93"]
[EventDate "2024.02.22"]
[EventType "swiss"]
[EventCountry "CZE"]
[SourceTitle "playchess.com"]
[Source "ChessBase"]
[SourceQuality "1"]
[TimeControl "40/5400+30:1800+30"]

{[%evp 9,93,16,39,30,27,24,31,35,52,44,41,39,36,37,48,43,48,51,44,46,50,40,57,36,55,16,26,9,18,8,6,11,20,15,21,20,12,12,58,67,61,64,75,12,13,8,23,23,24,4,3,2,4,3,14,8,14,14,56,56,56,56,56,33,56,53,56,56,63,63,63,63,63,63,63,63,63,53,56,53,56,53,53,53,53,53]} 1. e4 {[%emt 0:00:02]} e5 {[%emt 0:00:07]} 2. Nf3 {[%emt 0:00:04]} Nc6 {[%emt 0:00:07]} 3. Bb5 {[%emt 0:00:04]} Bc5 {[%emt 0:00:07]} 4. c3 {[%emt 0:00:32][%cal Bc2c3,Bc3d4,Bd4d5][%mdl 32]} Nf6 {[%emt 0:00:23]} 5. d4 {[%emt 0:02:30]} exd4 {[%emt 0:00:14]} 6. e5 {[%emt 0:00:19]} Nd5 {[%emt 0:00:20]} 7. O-O {[%emt 0:04:17][%cal Rc3d4]} Be7 {[%emt 0:00:11]} 8. cxd4 {[%emt 0:07:59] [#] Threatens to win with Qb3.} d6 {[%emt 0:00:30]} 9. exd6 {[%emt 0:08:25]} cxd6 {[%emt 0:02:39]} 10. Qb3 {[%emt 0:07:34]} Nc7 {[%emt 0:00:55]} 11. d5 {[%emt 0:01:24]} Nxb5 {[%emt 0:00:08]} 12. Qxb5 {[%emt 0:00:27]} a6 {[%emt 0:00:06]} 13. Qe2 {[%emt 0:07:09]} Ne5 {[%emt 0:00:08]} 14. Nxe5 {[%emt 0:00:22]} dxe5 {[%emt 0:00:05]} 15. Qxe5 {[%emt 0:00:17]} O-O {[%emt 0:00:09]} 16. Nc3 {[%emt 0:09:44]} Bd6 {[%emt 0:00:10]} 17. Qh5 {[%emt 0:02:26]} Re8 {[%emt 0:15:31] Inhibits Ne4.} 18. Bg5 {[%emt 0:00:57]} Qb6 {[%emt 0:15:05]} 19. Rae1 {[%emt 0:07:54]} Bd7 {[%emt 0:14:18][%cal Bc8d7,Bd7e8,Be8f7][%mdl 32] This pair of bishops is nice.} 20. Bc1 {[%emt 0:02:58]} Qd4 {[%emt 0:08:56]} 21. Qf3 {[%emt 0:05:49]} Rac8 {[%emt 0:08:13]} 22. h3 {[%emt 0:08:22]} Rxe1 {[%emt 0:13:01]} 23. Rxe1 {[%emt 0:00:07]} Re8 {[%emt 0:00:10]} (23... b5 $11) 24. Rxe8+ $14 {[%emt 0:00:53]} Bxe8 {[%emt 0:00:05]} 25. Qe4 {[%emt 0:01:33]} Qe5 {[%emt 0:15:12]} 26. Qxe5 {[%emt 0:01:14]} (26. f4 $16 Bc5+ 27. Kh2) 26... Bxe5 $16 {[%emt 0:00:07][%mdl 4096] Endgame. KBB-KBN} 27. Ne4 {[%emt 0:00:12]} f5 {[%emt 0:01:15]} 28. Nc5 {[%emt 0:00:37]} Bf7 {[%emt 0:00:09]} 29. Nxb7 {[%emt 0:03:48]} Bxd5 {[%emt 0:00:06]} 30. Nc5 {[%emt 0:00:10]} Bxa2 {[%emt 0:00:22]} 31. Nxa6 {[%emt 0:00:12]} Bd6 {[%emt 0:02:56] [#] ...Bc4 would now be deadly.} 32. Bd2 {[%emt 0:02:19]} Kf7 {[%emt 0:01:59]} 33. Bb4 {[%emt 0:01:09]} Bc4 {[%emt 0:00:30]} 34. Bxd6 {[%emt 0:00:24] White is slightly better.} Bxa6 $14 {[%emt 0:00:06] KB-KB} 35. Be5 {[%emt 0:02:03]} g6 {[%emt 0:00:33]} 36. Kh2 {[%emt 0:03:37]} Ke6 {[%emt 0:00:48]} 37. Bf4 {[%emt 0:00:14]} h5 {[%emt 0:00:16]} 38. Kg3 {[%emt 0:00:29]} Bf1 {[%emt 0:00:28]} 39. Kf3 {[%emt 0:01:12]} Kd5 {[%emt 0:01:03]} 40. h4 {[%emt 0:00:35]} Ke6 {[%emt 0:01:16]} 41. g3 {[%emt 0:31:32]} Ba6 {[%emt 0:31:07]} 42. Ke3 {[%emt 0:00:27]} Kd5 {[%emt 0:00:06]} 43. Kd2 {[%emt 0:00:16]} Bb5 {[%emt 0:00:00]} 44. Kc3 {[%emt 0:00:00]} Bf1 {[%emt 0:00:00]} 45. Bc7 {[%emt 0:00:00]} Ba6 {[%emt 0:00:00]} 46. Kd2 {[%emt 0:00:00]} Ke4 {[%emt 0:00:00]} 47. Bf4 {[%emt 0:00:00] Weighted Error Value: White=0.06 (flawless) /Black=0.06 (flawless) .  Mistake:       	White=1     	Black=1      Inaccurate:     	White=1     	Black=1      OK:         	White=23    	Black=12     Best:        	White=1     	Black=5} 1/2-1/2